bitfinex-derivatives/quotes_ETHF0:USTF0_20250125
["timestamp","ask_amount","ask_price","bid_price","bid_amount"]
[1737781756049,3.6851,3297.1,3297.0,0.48535]
[1737781758642,3.2078,3297.1,3297.0,0.48535]
[1737781765552,3.2078,3297.1,3296.9,0.48536]
[1737781765746,2.33347667,3297.0,3296.9,0.48536]
[1737781767153,0.48541,3296.7,3296.4,0.48544]
[1737781767451,2.33347667,3296.5,3296.4,0.48544]
[1737781768547,7.22783821,3296.6,3296.3,0.9918]
[1737781768855,7.22783821,3296.6,3296.5,0.48543]
[1737781768856,3.2078,3296.6,3296.5,0.48543]
[1737781769553,2.33347667,3296.8,3296.6,0.4854]
[1737781769751,2.33347667,3296.8,3296.7,0.4854]
[1737781770356,2.33347667,3296.8,3296.6,0.4854]
[1737781770550,3.2078,3297.0,3296.3,0.9918]
[1737781770755,2.33347667,3297.1,3296.4,1.21359]
[1737781771059,4.1678,3297.0,3296.9,0.48537]
[1737781771854,4.1678,3297.0,3296.8,0.48538]
[1737781772053,2.33347667,3296.9,3296.8,0.48538]
[1737781772256,2.33347667,3296.9,3296.7,0.48539]
[1737781773150,0.48562,3295.2,3295.1,3.9598833]
[1737781773352,0.48568,3294.8,3294.7,14.22931916]
[1737781773549,5.54127667,3294.8,3294.5,7.7676572]
[1737781773852,10.54127667,3294.8,3294.2,10.28269537]
[1737781774058,6.02702667,3294.3,3294.2,0.49514771]
[1737781774258,7.02802667,3294.3,3294.2,0.49969903]
[1737781774554,12.02802667,3294.3,3294.2,0.49969903]
[1737781774949,15.96982441,3294.3,3294.2,0.49969903]
[1737781775350,15.96982441,3294.3,3294.2,0.00455132]
[1737781776547,15.96982441,3294.3,3292.7,7.13922699]
[1737781776548,1.21443,3294.2,3292.7,7.13922699]
[1737781776749,0.48602,3292.5,3292.4,6.93146059]
[1737781776951,7.04929667,3292.5,3292.4,1.90969177]
[1737781777551,7.05029667,3292.5,3292.4,1.90969177]
[1737781777946,11.02485929,3292.5,3292.4,1.90969177]
[1737781778255,9.51583929,3292.5,3292.4,1.90969177]
[1737781778456,10.53883929,3292.5,3292.4,4.94784309]
[1737781778845,11.02485929,3292.5,3292.4,4.94784309]
[1737781779453,10.53883929,3292.5,3292.4,4.94784309]
[1737781779657,14.51306039,3292.5,3292.4,3.03815132]
[1737781780752,10.53849777,3292.5,3292.1,0.00455132]
[1737781781255,0.48605,3292.3,3292.1,0.00455132]
[1737781781455,0.48603,3292.4,3292.1,0.00455132]
[1737781781760,4.50910693,3292.4,3292.1,0.00455132]
[1737781782362,4.02307693,3292.4,3292.2,3.03815132]
[1737781782562,10.53849777,3292.5,3292.2,3.03815132]
[1737781783562,10.53849777,3292.5,3292.1,0.00455132]
[1737781783862,2.33347667,3292.2,3292.1,0.00455132]
[1737781788162,2.33347667,3292.2,3292.1,3.52877264]
[1737781788356,1.02,3292.4,3292.1,3.04270264]
[1737781788559,5.54127667,3292.5,3292.4,3.03815132]
[1737781788766,5.54127667,3292.5,3292.4,2.39080261]
[1737781788767,4.74807667,3292.5,3292.4,2.39080261]
[1737781789761,4.74807667,3292.5,3292.4,1.90477261]
[1737781789964,4.74807667,3292.5,3292.4,2.39080261]
[1737781790566,4.74807667,3292.5,3291.7,0.4985]
[1737781791266,4.74807667,3292.5,3292.4,0.48603]
[1737781792464,1.6214,3292.5,3292.4,0.48603]
[1737781793870,0.00455132,3292.8,3292.7,0.48599]
[1737781795569,0.00455132,3292.8,3292.7,1.01049]
[1737781804675,1.32e-06,3292.8,3292.7,1.01049]
[1737781804866,1.32e-06,3292.8,3292.7,6.01049]
[1737781806476,1.32e-06,3292.8,3292.7,1.01049]
[1737781810278,1.32e-06,3292.8,3292.7,0.48599]
[1737781810476,1.32e-06,3292.8,3292.4,3.21235132]
[1737781810683,5.54127667,3292.5,3292.4,0.49058132]
[1737781810991,2.33347799,3292.8,3292.7,0.48599]
[1737781811183,2.33347799,3292.8,3292.4,0.00455132]
[1737781811385,2.33347799,3292.8,3292.7,0.48599]
[1737781812488,2.33347799,3292.8,3292.5,0.486]
[1737781812783,0.48602,3292.5,3292.4,0.00455132]
[1737781812988,6.02729667,3292.5,3292.4,0.00455132]
[1737781813380,5.54127667,3292.5,3292.4,0.00455132]
[1737781813988,6.06637667,3292.5,3292.4,0.00455132]
[1737781816896,6.06637667,3292.5,3291.6,3.6952]
[1737781817092,3.2078,3292.1,3291.7,0.48613]
[1737781817293,3.2078,3292.1,3292.0,0.48609]
[1737781818797,3.2078,3292.1,3291.6,3.6952]
[1737781819299,3.2078,3292.1,3292.0,0.48609]
[1737781820392,3.66376518,3292.1,3292.0,0.48609]
[1737781824696,0.45596518,3292.1,3292.0,0.48609]
[1737781824991,5.31351598,3292.1,3292.0,0.48609]
[1737781825403,4.58954598,3292.1,3292.0,0.48609]
[1737781825699,3.88055598,3292.1,3292.0,0.48609]
[1737781826196,2.59093598,3292.1,3292.0,0.48609]
[1737781826402,7.05021746,3292.4,3292.3,0.48604]
[1737781828695,4.71831141,3292.5,3292.4,0.48603]
[1737781832897,5.89788926,3292.7,3292.2,3.2078]
[1737781832898,4.71831141,3292.6,3292.5,0.48602]
[1737781833602,4.05114141,3292.6,3292.5,0.48602]
[1737781833797,3.32311141,3292.6,3292.5,0.48602]
[1737781834000,5.89789058,3292.8,3292.4,0.4948]
[1737781834196,5.54127667,3292.6,3292.5,0.48602]
[1737781834501,5.54127667,3292.6,3292.3,0.48604]
[1737781834697,0.4876,3292.5,3292.4,0.48602]
[1737781837304,0.4876,3292.5,3292.3,0.48604]
[1737781838499,0.97362,3292.5,3292.2,0.48605]
[1737781838901,0.4876,3292.5,3292.3,0.48604]
[1737781839402,0.4876,3292.5,3292.4,0.48603]
[1737781841594,0.4876,3292.5,3292.4,0.48806319]
[1737781841798,5.54127667,3292.6,3292.5,0.48602]
[1737781842005,3.2078,3292.6,3292.5,0.48602]
[1737781843807,7.77608293,3292.6,3292.0,2.19141]
[1737781844108,7.77608293,3292.6,3292.5,0.48602]
[1737781844308,10.1095596,3292.6,3292.5,0.48602]
[1737781846202,7.77608293,3292.6,3292.5,0.48602]
[1737781849914,3.66365954,3292.6,3292.5,0.48602]
[1737781850813,5.99713621,3292.6,3292.5,0.48602]
[1737781850997,3.66365954,3292.6,3292.5,0.48602]
[1737781852912,9.10969197,3292.6,3292.5,0.48602]
[1737781855314,5.90189197,3292.6,3292.5,0.48602]
[1737781857718,5.01473452,3292.6,3292.5,0.48602]
[1737781860317,4.33519452,3292.6,3292.5,0.48602]
[1737781861517,1.32e-06,3292.8,3292.7,0.48599]
[1737781866026,5.91179566,3292.8,3292.7,0.48599]
[1737781870328,1.32e-06,3292.8,3292.7,0.48599]
[1737781875728,1.32e-06,3292.8,3292.2,3.2078]
[1737781875922,1.32e-06,3292.8,3292.6,0.486]
[1737781876122,0.47730132,3292.8,3292.7,0.48599]
[1737781876529,1.32e-06,3292.8,3292.7,0.48599]
[1737781877024,1.32e-06,3292.8,3292.7,3.69379]
[1737781877425,1.32e-06,3292.8,3292.7,4.20009]
[1737781878726,1.32e-06,3292.8,3292.7,9.20009]
[1737781879029,1.32e-06,3292.8,3292.7,4.20009]
[1737781880332,1.37340077,3292.8,3292.7,4.20009]
[1737781880635,5.20898342,3293.0,3292.9,0.48596]
[1737781880825,5.20898342,3293.0,3292.9,2.81943667]
[1737781881227,5.20898342,3293.0,3292.9,3.31003667]
[1737781883033,3.54982203,3293.1,3293.0,0.48594]
[1737781887344,0.00455132,3293.3,3292.9,0.4906]
[1737781887531,0.00455132,3293.3,3293.2,0.48591]
[1737781890336,4.35604309,3293.3,3293.2,0.48591]
[1737781890639,4.35604309,3293.3,3293.1,0.48592]
[1737781890935,0.5221,3293.2,3293.1,0.48592]
[1737781891139,0.5221,3293.2,3292.7,3.2078]
[1737781891332,0.5046,3293.1,3292.8,0.48596]
[1737781892036,0.5046,3293.1,3292.7,3.2078]
[1737781892037,0.5046,3293.1,3292.9,0.48596]
[1737781893237,3.7124,3293.1,3292.3,0.5283]
[1737781893438,3.7124,3293.1,3292.8,0.48597]
[1737781893937,3.7124,3293.1,3292.3,0.5283]
[1737781894432,3.7124,3293.1,3292.8,0.48596]
[1737781896440,7.03687667,3293.1,3292.1,3.2078]
[1737781896739,0.48599,3292.7,3292.4,0.48603]
[1737781896939,2.81945667,3292.8,3292.4,0.48603]
[1737781897141,0.5119,3292.6,3292.4,0.48603]
[1737781897341,0.4834,3292.5,3292.4,0.48603]
[1737781898433,0.4834,3292.5,3292.3,0.48604]
[1737781898838,3.2078,3292.4,3291.8,1.5478]
[1737781899143,3.69383,3292.4,3292.0,0.48608]
[1737781899735,3.2078,3292.4,3291.8,1.5478]
[1737781899936,3.2078,3292.4,3292.0,0.48608]
[1737781900439,3.2078,3292.4,3291.8,0.5202]
[1737781900635,3.69384,3292.4,3291.9,0.48609]
[1737781900843,3.69384,3292.4,3291.9,0.4861]
[1737781901343,5.91713578,3292.1,3291.9,0.48611]
[1737781901538,5.91713578,3292.1,3291.8,0.5202]
[1737781901741,5.91713578,3292.1,3291.9,0.48609]
[1737781901931,5.91713578,3292.1,3292.0,0.48609]
[1737781902946,5.91713578,3292.1,3291.9,0.4861]
[1737781903134,5.91713578,3292.1,3291.8,0.5202]
[1737781903343,5.91713578,3292.1,3292.0,0.48609]
[1737781905045,7.53361746,3292.5,3292.4,0.48603]
[1737781905340,7.53361746,3292.5,3291.6,3.2078]
[1737781905639,3.2078,3292.4,3291.6,3.2078]
[1737781905935,3.7056,3292.4,3292.0,0.48608]
[1737781906738,4.19164,3292.4,3292.0,0.48608]
[1737781907845,0.48606,3292.3,3291.9,0.48609]
[1737781908045,0.48606,3292.3,3291.6,3.2078]
[1737781908344,5.90948049,3292.2,3291.6,3.2078]
[1737781908549,0.48609,3292.1,3291.7,0.48613]
[1737781908842,0.48609,3292.0,3291.7,0.48613]
[1737781909043,0.4916,3291.9,3291.7,0.48613]
[1737781909244,0.4916,3291.9,3291.6,3.2078]
[1737781909443,0.48614,3291.7,3291.3,0.48619]
[1737781910140,0.48955132,3291.8,3291.1,3.2078]
[1737781910344,0.48619,3291.4,3291.1,3.2078]
[1737781910545,0.4916,3291.3,3291.1,3.2078]
[1737781910939,0.4916,3291.3,3291.0,0.98742]
[1737781911646,0.9778,3291.3,3290.9,0.48625]
[1737781911839,0.4916,3291.3,3290.9,0.48625]
[1737781912041,0.4916,3291.3,3290.7,3.2078]
[1737781912242,3.81607667,3291.3,3290.7,3.2078]
[1737781912539,0.48621,3291.2,3290.8,0.48626]
[1737781912738,3.81607667,3291.3,3290.7,3.2078]
[1737781912941,0.48623,3291.1,3290.7,3.2078]
[1737781913138,0.4954,3291.2,3290.7,3.2078]
[1737781913341,0.48622,3291.1,3290.8,0.48627]
[1737781913540,0.98161,3291.2,3290.8,0.48627]
[1737781913939,0.98161,3291.2,3290.9,0.48625]
[1737781914650,6.20700396,3291.3,3290.7,3.2078]
[1737781914834,6.69320396,3291.3,3290.8,0.5087]
[1737781915040,6.69320396,3291.3,3291.0,0.48624]
[1737781915245,3.2078,3291.1,3289.8,2.33347667]
[1737781915446,3.2078,3290.3,3289.6,7.98221186]
[1737781915643,3.2078,3290.3,3289.7,0.48643]
[1737781915644,0.5251,3290.2,3289.7,0.48643]
[1737781915842,0.5251,3290.2,3289.6,8.99511186]
[1737781916043,0.5251,3290.2,3289.8,0.48641]
[1737781916739,1.002,3290.6,3290.0,3.2078]
[1737781916939,3.7329,3290.8,3290.1,2.33347667]
[1737781917146,3.7329,3290.8,3290.1,2.82307667]
[1737781917357,3.7329,3290.8,3290.4,0.48631]
[1737781917547,3.7329,3290.8,3290.2,0.5087]
[1737781917748,3.2078,3290.8,3290.3,0.5042]
[1737781917959,3.2078,3290.8,3290.3,0.99054]
[1737781919052,3.2078,3290.8,3290.5,0.4863]
[1737781919251,2.3573747,3290.9,3290.4,5.54127667]
[1737781919445,2.3573747,3290.9,3290.8,0.48627]
[1737781919648,2.3573747,3290.9,3290.7,0.48628]
[1737781920043,2.3573747,3290.9,3290.8,0.4987]
[1737781922955,2.3573747,3290.9,3290.8,0.98497]
[1737781923459,2.3573747,3290.9,3290.8,0.4987]
[1737781923953,2.3573747,3290.9,3290.3,0.5042]
[1737781923954,0.48629,3290.7,3290.3,0.5042]
[1737781924256,0.48632,3290.5,3290.1,0.5224]
[1737781924450,0.5147,3290.4,3290.1,0.5224]
[1737781925354,1.00104,3290.4,3290.1,0.5224]
[1737781926060,0.5147,3290.4,3290.1,0.5224]
[1737781926263,0.48639,3290.0,3289.5,0.48645]
[1737781926461,3.2078,3289.8,3289.4,0.48647]
[1737781926655,0.478,3289.7,3288.9,3.7302]
[1737781926857,0.478,3289.7,3289.4,0.48647]
[1737781927057,0.478,3289.7,3288.9,3.7302]
[1737781927252,0.478,3289.7,3289.3,0.48648]
[1737781927462,0.478,3289.7,3289.4,0.48646]
[1737781927965,0.4871,3289.6,3289.4,0.48646]
[1737781928264,0.48646,3289.5,3289.0,0.48652]
[1737781928460,3.96771771,3289.6,3288.9,3.7302]
[1737781928654,3.96771771,3289.6,3289.5,0.48646]
[1737781928854,3.2078,3289.8,3289.1,2.33347667]
[1737781929055,3.2078,3289.8,3289.6,0.48643]
[1737781929359,3.2078,3289.8,3289.5,0.48645]
[1737781929558,3.2078,3289.8,3289.1,2.33347667]
[1737781929755,3.2078,3289.8,3289.7,0.48643]
[1737781930160,3.2078,3289.8,3289.4,0.48647]
[1737781930562,3.2078,3289.8,3289.1,2.33347667]
[1737781930752,3.2078,3289.8,3289.7,0.48643]
[1737781930953,3.2078,3289.8,3289.1,2.33347667]
[1737781931157,3.2078,3289.8,3289.6,0.48644]
[1737781931350,3.871833,3290.1,3289.7,3.2078]
[1737781931550,2.361933,3290.1,3290.0,0.48639]
[1737781932661,3.53606206,3290.4,3290.3,0.48634]
[1737781935666,0.0045583,3290.7,3290.6,0.4863]
[1737781936967,0.0045583,3290.7,3290.2,3.2078]
[1737781937269,0.48631,3290.6,3290.0,0.4909383]
[1737781937456,0.5198,3290.5,3290.0,0.4909383]
[1737781937656,0.5198,3290.5,3290.1,0.48637]
[1737781938058,0.5198,3290.5,3290.0,0.0045583]
[1737781938264,3.2078,3290.3,3290.0,0.0045583]
[1737781938469,3.69415,3290.3,3290.0,0.0045583]
[1737781938768,2.33347667,3290.2,3290.0,0.0045583]
[1737781938966,0.48637,3290.1,3290.0,0.0045583]
[1737781939966,2.33347667,3290.2,3290.0,0.0045583]
[1737781940162,2.81983667,3290.2,3290.0,0.0045583]
[1737781941872,0.48637,3290.1,3290.0,0.0045583]
[1737781942072,0.48636,3290.2,3290.0,0.0045583]
[1737781944476,0.4884,3290.1,3290.0,0.0045583]
[1737781946375,0.97477,3290.1,3290.0,0.0045583]
[1737781948874,0.4884,3290.1,3290.0,0.0045583]
[1737781949074,0.97477,3290.1,3290.0,0.0045583]
[1737781949769,0.4884,3290.1,3290.0,0.0045583]
[1737781950077,0.97477,3290.1,3290.0,0.0045583]
[1737781952471,0.4884,3290.1,3290.0,0.0045583]
[1737781952677,3.53606206,3290.2,3290.1,0.48637]
[1737781954976,3.53606206,3290.2,3290.1,0.99037]
[1737781955370,3.2078,3290.4,3290.2,0.48636]
[1737781955371,3.53606206,3290.3,3290.2,0.48636]
[1737781956272,3.53606206,3290.3,3290.0,0.0045583]
[1737781956469,0.48637,3290.1,3290.0,0.0045583]
[1737781956671,0.48636,3290.2,3290.0,0.0045583]
[1737781957678,3.53606206,3290.3,3290.0,0.0045583]
[1737781957875,3.53606206,3290.3,3290.0,0.4909383]
[1737781958079,3.53606206,3290.3,3290.2,0.48636]
[1737781958275,3.53606206,3290.3,3290.0,0.0045583]
[1737781958983,4.72440396,3290.3,3290.2,0.48636]
[1737781959275,4.72440396,3290.3,3290.1,0.4792]
[1737781959478,4.72440396,3290.3,3290.2,0.48636]
[1737781959870,4.72440396,3290.3,3290.2,0.97016]
[1737781962073,4.72440396,3290.3,3290.0,0.4909283]
[1737781962674,3.54090248,3290.4,3290.1,0.48637]
[1737781963089,3.54090248,3290.4,3290.0,0.0045583]
[1737781963386,3.54090248,3290.4,3290.3,0.48634]
[1737781965686,4.72440396,3290.5,3290.0,3.2123583]
[1737781965892,4.72440396,3290.5,3290.4,0.48633]
[1737781967787,4.72440396,3290.5,3290.3,0.48633]
[1737781968291,4.72440396,3290.5,3290.0,3.2123583]
[1737781968490,4.72440396,3290.5,3290.2,0.48635]
[1737781970394,4.72440396,3290.5,3290.0,3.2123583]
[1737781970395,4.72440396,3290.4,3290.0,3.2123583]
[1737781970596,4.72440396,3290.4,3290.2,0.48634]
[1737781970793,4.72440396,3290.4,3290.0,3.2123583]
[1737781970999,4.72440396,3290.4,3290.1,0.48637]
[1737781971187,0.515,3290.3,3290.1,0.48637]
[1737781971390,0.5163,3290.2,3290.1,0.48637]
[1737781972104,4.72440396,3290.4,3290.3,0.48634]
[1737781973099,4.72440396,3290.4,3290.3,5.48634]
[1737781973495,4.72440396,3290.4,3290.3,0.48634]
[1737781974193,4.72440396,3290.4,3290.3,7.81981667]
[1737781975193,3.60710396,3290.4,3290.3,7.81981667]
[1737781975400,2.78346396,3290.4,3290.3,7.81981667]
[1737781975602,1.97743396,3290.4,3290.3,7.81981667]
[1737781975791,1.34144396,3290.4,3290.3,7.81981667]
[1737781976397,0.71342396,3290.4,3290.3,7.81981667]
[1737781976594,0.71342396,3290.4,3290.3,2.81981667]
[1737781976902,0.71342396,3290.4,3290.3,0.48634]
[1737781978801,1.0008,3290.6,3290.3,0.48634]
[1737781979101,1.0008,3290.6,3290.0,3.2123583]
[1737781979399,1.0008,3290.6,3290.3,0.48634]
[1737781979600,1.0008,3290.6,3290.0,3.2123583]
[1737781979801,1.0008,3290.6,3290.5,0.48631]
[1737781984402,1.0008,3290.6,3290.5,3.69411]
[1737781986907,4.5408641,3290.6,3290.5,3.69411]
[1737781987397,3.5400641,3290.6,3290.5,3.69411]
[1737781987897,132.9300641,3290.6,3290.5,8.69411]
[1737781990607,132.9300641,3290.6,3290.5,3.69411]
[1737781991202,129.39,3290.6,3290.5,3.69411]
[1737781992603,128.64511301,3290.6,3290.5,3.69411]
[1737781993310,54.05833215,3290.6,3290.5,8.69411]
[1737781993512,52.85022116,3290.6,3290.5,8.69411]
[1737781994504,52.16220116,3290.6,3290.5,8.69411]
[1737781994713,51.09346116,3290.6,3290.5,8.69411]
[1737781994905,50.11353116,3290.6,3290.5,8.69411]
[1737781995514,48.75311116,3290.6,3290.5,8.69411]
[1737781995811,46.55400116,3290.6,3290.5,8.69411]
[1737781996011,44.45284116,3290.6,3290.5,8.69411]
[1737781996413,43.36866116,3290.6,3290.5,8.69411]
[1737781996606,40.45609116,3290.6,3290.5,8.69411]
[1737781997613,40.45609116,3290.6,3290.5,3.69411]
[1737781999910,40.45609116,3290.6,3290.5,8.69411]
[1737782000216,40.45609116,3290.6,3290.5,3.69411]
[1737782001003,40.96189116,3290.6,3290.5,3.69411]
[1737782001202,40.45609116,3290.6,3290.5,3.69411]
[1737782001617,37.96057916,3290.6,3290.5,8.69411]
[1737782001809,33.3142683,3290.6,3290.5,8.69411]
[1737782002114,19.29379446,3290.6,3290.5,8.69411]
[1737782002311,19.29379446,3290.6,3290.5,9.69311]
[1737782002513,18.23284446,3290.6,3290.5,9.69311]
[1737782002713,17.22595446,3290.6,3290.5,9.69311]
[1737782002909,15.11509446,3290.6,3290.5,9.69311]
[1737782003110,13.62902446,3290.6,3290.5,9.69311]
[1737782003514,11.77342446,3290.6,3290.5,9.69311]
[1737782003914,9.60055446,3290.6,3290.5,9.93550751]
[1737782004109,9.50065446,3290.6,3290.5,9.93550751]
[1737782004815,9.50065446,3290.6,3290.5,4.93550751]
[1737782007408,9.50065446,3290.6,3290.5,9.93550751]
[1737782007615,9.50065446,3290.6,3290.5,8.93650751]
[1737782008024,8.58345446,3290.6,3290.5,8.93650751]
[1737782008419,7.67005446,3290.6,3290.5,3.93650751]
[1737782008618,7.67005446,3290.6,3290.5,8.93650751]
[1737782012826,7.67005446,3290.6,3290.5,8.69411]
[1737782013025,8.63615446,3290.6,3290.5,3.69411]
[1737782013323,8.14965446,3290.6,3290.5,3.69411]
[1737782013719,7.67005446,3290.6,3290.5,8.69411]
[1737782014321,7.29745446,3290.6,3290.5,8.69411]
[1737782014724,7.77705446,3290.6,3290.5,3.69411]
[1737782017025,8.28025446,3290.6,3290.5,3.69411]
[1737782017223,7.22115846,3290.6,3290.5,8.69411]
[1737782017432,6.23835846,3290.6,3290.5,8.69411]
[1737782017727,6.23835846,3290.6,3290.5,3.69411]
[1737782018228,5.44131073,3290.6,3290.5,3.69411]
[1737782019019,6.45121073,3290.6,3290.5,3.69411]
[1737782022626,4.54376556,3290.6,3290.5,3.69411]
[1737782023732,0.03445741,3290.6,3290.5,8.69411]
[1737782023927,1.0034,3291.2,3291.1,0.48622]
[1737782024130,1.0034,3291.2,3291.1,6.02749667]
[1737782024729,0.2273923,3291.2,3291.1,6.02749667]
[1737782024929,0.2273923,3291.2,3291.1,11.02749667]
[1737782025129,0.0045583,3291.5,3291.4,0.48618]
[1737782025437,0.0045583,3291.5,3291.4,2.81965667]
[1737782027426,0.0045583,3291.5,3291.4,3.05673488]
[1737782028731,0.0045583,3291.5,3291.4,2.81965667]
[1737782029032,0.0045583,3291.5,3291.4,2.33347667]
[1737782029240,0.0045583,3291.5,3291.4,2.81965667]
[1737782030333,0.5304583,3291.5,3291.2,2.81967667]
[1737782031434,0.5304583,3291.5,3291.3,0.48619]
[1737782032437,0.5304583,3291.5,3291.2,2.33347667]
[1737782034834,0.5304583,3291.5,3291.2,2.81968667]
[1737782035040,0.5304583,3291.5,3291.2,2.33347667]
[1737782035240,0.5304583,3291.5,3291.2,2.81967667]
[1737782035540,0.5304583,3291.5,3291.2,2.33347667]
[1737782035942,0.5304583,3291.5,3291.2,2.81967667]
[1737782038243,0.5304583,3291.5,3291.4,0.48618]
[1737782038637,0.5304583,3291.5,3291.3,0.48619]
[1737782039038,0.5304583,3291.5,3291.2,2.33347667]
[1737782039241,0.5304583,3291.5,3291.4,0.48618]
[1737782040745,0.5304583,3291.5,3291.3,0.48619]
[1737782041635,0.5304583,3291.5,3291.1,3.2078]
[1737782041835,0.5304583,3291.5,3291.1,3.69401]
[1737782042237,0.5304583,3291.5,3291.1,3.2078]
[1737782042845,0.5304583,3291.5,3291.1,3.69402]
[1737782043641,0.5304583,3291.5,3291.1,3.2078]
[1737782044643,0.5304583,3291.5,3291.1,3.69402]
[1737782044845,0.5304583,3291.5,3291.1,3.2078]
[1737782045438,0.5304583,3291.5,3291.1,3.69402]
[1737782046347,0.5304583,3291.5,3291.1,3.2078]
[1737782053442,0.48621,3291.2,3291.1,3.2078]
[1737782053647,0.48624,3291.0,3290.8,4.77441186]
[1737782053848,2.86393497,3291.5,3290.8,4.77441186]
[1737782053849,0.4897,3290.9,3290.8,4.77441186]
[1737782057746,1.0323,3291.0,3290.8,4.77441186]
[1737782058148,0.5066,3291.0,3290.8,4.77441186]
[1737782058656,3.5400641,3290.9,3290.7,1.0237]
[1737782058957,3.5400641,3290.9,3290.7,2.01998]
[1737782059453,3.5400641,3290.9,3290.7,1.5337]
[1737782059854,3.5400641,3290.9,3290.8,2.33347667]
[1737782060958,3.5400641,3290.9,3290.8,2.81974667]
[1737782061161,4.0478641,3291.3,3290.8,2.81974667]
[1737782061755,4.0478641,3291.3,3290.8,2.33347667]
[1737782062659,0.48621,3291.2,3290.8,2.33347667]
[1737782062861,4.5340641,3291.3,3290.8,2.33347667]
[1737782063051,4.0478641,3291.3,3290.8,2.33347667]
[1737782063451,4.0478641,3291.3,3291.1,3.2078]
[1737782064555,3.5400641,3291.2,3291.1,3.2078]
[1737782068663,3.5400641,3291.3,3291.1,3.2078]
[1737782069164,3.5400641,3291.3,3291.2,0.5149]
[1737782069665,3.5400641,3291.3,3291.2,1.00111]
[1737782070667,3.5400641,3291.3,3291.2,0.5149]
[1737782071264,3.5400641,3291.3,3291.2,1.00111]
[1737782071858,0.0045583,3291.5,3291.2,1.00111]
[1737782072070,0.0045583,3291.5,3291.3,0.5135]
[1737782072262,0.0045583,3291.5,3291.3,0.99969]
[1737782072565,0.0045583,3291.5,3291.4,2.81965667]
[1737782072969,0.0045583,3291.5,3291.4,2.33347667]
[1737782074165,0.0045583,3291.5,3291.3,0.5135]
[1737782074964,0.5045583,3291.5,3291.3,0.5135]
[1737782075463,0.9907283,3291.5,3291.2,0.5149]
[1737782076363,0.5045583,3291.5,3291.2,0.5149]
[1737782076562,0.48619,3291.4,3291.2,0.5149]
[1737782076868,0.9907283,3291.5,3291.2,0.5149]
[1737782077072,0.48621,3291.2,3291.1,3.2078]
[1737782078677,3.5400641,3291.9,3291.1,4.1928]
[1737782078875,3.2078,3292.6,3291.8,5.54127667]
[1737782079171,0.48597,3292.9,3291.9,1.5338]
[1737782079671,0.48598,3292.8,3291.9,2.0199]
[1737782079874,0.0045583,3292.7,3292.1,0.0045583]
[1737782081167,0.0045583,3292.7,3292.1,0.4906283]
[1737782081472,0.0045583,3292.7,3292.1,0.0045583]
[1737782081675,0.0045583,3292.7,3292.3,0.48604]
[1737782081877,0.0045583,3292.7,3292.4,0.5132]
[1737782082984,0.0045583,3292.7,3292.1,0.0045583]
[1737782083474,0.4905483,3292.7,3292.1,0.0045583]
[1737782083674,0.5248,3292.6,3292.1,0.0045583]
[1737782084077,0.5248,3292.5,3292.1,0.4906283]
[1737782084476,0.5248,3292.5,3292.1,2.82410497]
[1737782085372,0.5248,3292.5,3292.2,0.48605]
[1737782085771,0.5248,3292.5,3292.3,0.48604]
[1737782086379,0.0045583,3292.7,3292.4,0.48602]
[1737782086680,0.0045583,3292.7,3292.5,0.98191]
[1737782086875,0.0045583,3292.7,3292.6,0.486]
[1737782087072,0.0045583,3292.7,3292.2,3.2078]
[1737782087276,0.0045583,3292.7,3292.2,3.69385]
[1737782087572,0.0045583,3292.7,3292.3,0.48605]
[1737782087769,0.0045583,3292.7,3292.2,3.2078]
[1737782088175,0.0045583,3292.7,3292.2,3.69386]
[1737782088575,0.0045583,3292.7,3292.3,0.48604]
[1737782089185,4.72376874,3293.2,3292.8,0.48596]
[1737782089484,4.72376874,3293.2,3293.0,3.2078]
[1737782089681,0.48593,3293.1,3292.6,3.2078]
[1737782089881,0.4805,3293.0,3292.5,2.33347667]
[1737782090279,0.5113,3292.9,3292.2,5.54127667]
[1737782090482,0.99726,3292.9,3292.2,5.54127667]
[1737782090672,0.5113,3292.9,3292.2,5.54127667]
[1737782091274,0.5113,3292.9,3292.2,6.02733667]
[1737782091881,0.5113,3292.9,3292.3,0.48604]
[1737782092187,0.5113,3292.9,3292.2,5.54127667]
[1737782092188,0.5113,3292.9,3292.5,2.33347667]
[1737782092485,0.5113,3292.9,3292.6,3.2078]
[1737782092680,0.5113,3292.9,3292.6,3.7353]
[1737782094285,0.99726,3292.9,3292.6,3.7353]
[1737782094480,0.4905,3292.8,3292.6,3.7353]
[1737782094685,0.5113,3292.9,3292.6,3.7353]
[1737782094985,0.5113,3292.9,3292.6,0.5275]
[1737782096590,0.99727,3292.9,3292.5,2.33347667]
[1737782096991,0.99727,3292.9,3292.3,0.9979]
[1737782096992,0.5113,3292.9,3292.3,0.9979]
[1737782097482,0.5113,3292.9,3292.3,1.48394]
[1737782097682,0.5113,3292.9,3292.5,2.33347667]
[1737782099587,0.5113,3292.9,3292.6,0.486]
[1737782099784,0.0045583,3293.1,3292.8,2.33347667]
[1737782100092,0.0045583,3293.1,3292.9,0.9786]
[1737782100492,0.0045583,3293.1,3292.8,2.81944667]
[1737782100791,0.0045583,3293.1,3292.9,0.4884]
[1737782101583,0.0045583,3293.1,3292.9,0.97435]
[1737782101789,0.0045583,3293.1,3293.0,0.48594]
[1737782101995,0.0045583,3293.1,3292.9,1.48335]
[1737782102197,0.0045583,3293.1,3292.8,2.82747667]
[1737782102687,0.48595,3293.0,3292.6,3.2078]
[1737782102886,0.492,3292.9,3292.6,3.2078]
[1737782103089,1.0122,3292.9,3292.6,3.2078]
[1737782105786,1.49816,3292.9,3292.6,3.2078]
[1737782108788,1.0122,3292.9,3292.3,0.494]
[1737782109093,0.48603,3292.5,3292.2,3.2078]
[1737782109303,0.5079,3292.4,3292.2,3.2078]
[1737782109593,0.5079,3292.4,3292.2,3.6918]
[1737782109996,0.5079,3292.4,3292.3,0.4849]
[1737782112100,0.48606,3292.2,3292.1,0.0045583]
[1737782115001,5.48606,3292.2,3292.1,0.0045583]
[1737782115604,0.48606,3292.2,3292.1,0.0045583]
[1737782117194,7.81953667,3292.2,3292.1,0.0045583]
[1737782117897,0.48615,3291.6,3291.5,0.4849]
[1737782118098,3.2078,3291.8,3291.5,0.4849]